Cogmind - Beta 16 --- EXPLORER MODE // 2025.11.16 @ 19:52:21 Player: ralann Result: Destroyed by S-10 Pest with Light Assault Rifle Performance ------------- Evolutions (0) 0 Regions Visited (2) 400 Robots Destroyed (9) 45 Value Destroyed (126) 126 Prototype IDs (0) 0 Alien Tech Used (0) 0 Bonus (0) 0 TOTAL SCORE: 571 Bonus ------- None Cogmind --------- Core Integrity 0/250 Matter 266/300 Energy 100/100 System Corruption 1% Temperature Cool (0) Movement Treading (160) Location -10/Mines Parts ------- > --- POWER (2) -------- (None) > --- PROPULSION (2) --- Light Treads Light Treads > --- UTILITY (2) ------ Medium Storage Unit Core Shielding > --- WEAPON (2) ------- (None) > --- INVENTORY (10) --- Aluminum Leg Hover Unit Small Matter Pod (14) Medium Matter Pod (0) Medium Matter Pod (0) Medium Matter Pod (0) Medium Matter Pod (0) Welding Torch Peak State ------------ > --- POWER ------------ Light Ion Engine Light Ion Engine > --- PROPULSION ------- Hover Unit Hover Unit > --- UTILITY ---------- Medium Storage Unit Core Shielding > --- WEAPON ----------- Medium Laser Light Assault Rifle > --- INVENTORY -------- Ion Engine Light Ion Engine Light Treads Light Treads Aluminum Leg Flight Unit Small Matter Pod Terrain Scanner Assault Rifle Welding Torch [Rating: 9] Favorites ----------- Power Light Ion Engine Engine Light Ion Engine Propulsion Hover Unit Treads Light Treads Wheel Wheel Hover Unit Hover Unit Flight Unit Flight Unit Utility Core Shielding Device Terrain Scanner Storage Medium Storage Unit Protection Core Shielding Weapon Light Assault Rifle Energy Gun Medium Laser Ballistic Gun Light Assault Rifle Build | -11 -10 -10 ------- Run | Yrd Mat Min Slots Evolved 1 | . 1 . Power 1 | . 1 . Propulsion . | . . . Utility . | . . . Weapon . | . . . Parts Attached 18 | 7 11 . Power 4 | 1 3 . Engine 4 | 1 3 . Core . | . . . Reactor . | . . . Propulsion 7 | 2 5 . Treads 2 | . 2 . Leg . | . . . Wheel 2 | 2 . . Hover 2 | . 2 . Flight 1 | . 1 . Utility 4 | 2 2 . Device 1 | 1 . . Storage 1 | . 1 . Processor . | . . . Hackware . | . . . Protection 2 | 1 1 . Artifact . | . . . Weapon 3 | 2 1 . Energy Gun 1 | 1 . . Energy Cannon . | . . . Ballistic Gun 2 | 1 1 . Ballistic Cannon . | . . . Launcher . | . . . Special Weapon . | . . . Impact Weapon . | . . . Slashing Weapon . | . . . Piercing Weapon . | . . . Special Melee Weapon . | . . . Unidentified Prototypes . | . . . Parts Lost 4 | . 1 3 Power 2 | . . 2 Propulsion 1 | . 1 . Utility . | . . . Weapon 1 | . . 1 Highest Loss Streak 2 | . 1 2 To Critical Strikes . | . . . Average Backups 5 | . 6 8 Power . | . . . Propulsion 2 | . 3 2 Utility 1 | . 1 5 Weapon . | . . . Tool/Special . | . . . Unused Backups 8 | 1 . 7 Power . | . . . Propulsion 1 | . . 1 Utility 6 | 1 . 5 Weapon . | . . . Tool/Special 1 | . . 1 Average Slot Usage (%) 88 | . 88 77 Engine 21 | . 21 22 Treads 2 | . 2 25 Wheel 4 | . 4 . Hover 13 | . 13 . Flight 1 | . 1 . Device 2 | . 2 . Storage 9 | . 9 12 Protection 12 | . 12 12 Energy Gun 7 | . 7 . Ballistic Gun 11 | . 12 5 Peak Build Rating 9 | 7 9 7 Average Rating 6 | 5 7 6 On Entrance 4 | . 7 7 Avg Prop Armor Cover (%) 7 | . 7 . Naked Turns . | . . . Heaviest Build 22 | 9 22 . Greatest Support 40 | 20 40 . Greatest Overweight (x) 4 | . 4 . Average Overweight (x) 1 | . 1 . Largest Inventory Capacity 10 | 5 10 10 Average Capacity 8 | 5 9 10 Most Carried 10 | 5 10 8 Average Carried 5 | . 6 8 Final Capacity 10 | 5 10 10 Final Carried 8 | 2 8 8 Class Distribution -------------------- 100% | Hacker-Mutant Dominant Class ---------------- Hacker-Mutant | -10/Materials Hacker-Mutant | -10/Mines Resources | -11 -10 -10 ----------- Run | Yrd Mat Min Matter Collected 411 | 265 146 . Remotely . | . . . Salvage Created 184 | 38 146 . Parts 12 | 2 10 . Haulers Intercepted . | . . . Recyclers Shooed . | . . . Parts Field Recycled . | . . . Retrieved Matter . | . . . Parts Self-Destructed . | . . . Prevented . | . . . Parts Restored . | . . . Kills | -11 -10 -10 ------- Run | Yrd Mat Min Combat Hostiles Destroyed 7 | 1 6 . Guns 7 | 1 6 . Classes Destroyed 3 | 1 2 . Watcher 2 | . 2 . Swarmer 6 | . 6 . Grunt 1 | 1 . . Best Kill Streak 2 | 1 2 . Combat Bots Only 2 | 1 2 . Max Kills in Single Turn 1 | 1 1 . Gunslinging . | . . . Exploded . | . . . Melee . | . . . Uniques/NPCs Destroyed . | . . . Combat | -11 -10 -10 -------- Run | Yrd Mat Min Hostile Shots Fired 266 | 4 147 115 Missed 70 | 2 36 32 Hits 196 | 2 111 83 Projectile 196 | 2 111 83 Critical Strikes 1 | . 1 . Actively Blocked 1 | . 1 . Damage Taken 923 | 31 524 368 Core 252 | 12 139 101 Absorbed by Shields . | . . . Redirected to Shielding 37 | . 21 16 Ignored by Resistances 673 | 9 388 276 Core Remaining (%) 95 | 95 . . Volleys Fired 12 | 1 11 . Largest 2 | 2 2 . Hottest 70 | 70 70 . Shots Fired 27 | 2 25 . Gun 27 | 2 25 . Cannon . | . . . Launcher . | . . . Special . | . . . Kinetic 15 | 1 14 . Thermal 12 | 1 11 . Explosive . | . . . Electromagnetic . | . . . Robot Hit Streak 8 | 2 8 . Robot Miss Streak 3 | . 3 . Penetration Max . | . . . Secondary Targets . | . . . Shots Hit Robots 17 | 2 15 . Core Hits 12 | 3 9 . Critical Kills . | . . . Critical Parts Destroyed . | . . . Critical Strikes 1 | . 1 . Burn 1 | . 1 . Melee Attacks . | . . . Impact . | . . . Slashing . | . . . Piercing . | . . . Sneak Attacks . | . . . Combat Hostiles . | . . . Follow-up Attacks . | . . . Damage Inflicted 209 | 38 171 . Guns 197 | 26 171 . Cannons . | . . . Explosions . | . . . Melee . | . . . Ramming 12 | 12 . . Kinetic 84 | 13 71 . Thermal 113 | 13 100 . Explosive . | . . . Electromagnetic . | . . . Impact . | . . . Slashing . | . . . Piercing . | . . . Highest Corruption 1 | . 1 1 Average Corruption 1 | . 1 1 Corruption Purged . | . . . Corruption Blocked . | . . . Effects 34 | . 33 1 Message Errors 7 | . 7 . Matter Fused 8 | . 8 . Heat Flow Errors 5 | . 5 . Energy Discharges 2 | . 2 . Parts Rejected 1 | . 1 . Data Loss (minor) 3 | . 3 . Data Loss (major) 1 | . 1 . Misfires 4 | . 4 . Alerts 3 | . 2 1 Overload Shots . | . . . Overflow Damage . | . . . Projectiles . | . . . Explosions . | . . . Melee . | . . . Knockbacks . | . . . Impact . | . . . Kinetic . | . . . Secondary . | . . . Self-Inflicted Damage 5 | 5 . . Shots . | . . . Rammed 3 | 3 . . Targets Rammed 3 | 3 . . Kicked . | . . . Crushed . | . . . Highest Temperature 210 | 9 210 . Average Temperature 58 | 6 59 . Received Heat Transfer 12 | 12 . . Siege Activations . | . . . Martial Activations . | . . . Shielding Activations . | . . . Robots Disrupted . | . . . Combat Hostiles . | . . . Robots Corrupted . | . . . Combat Hostiles . | . . . Parts Fried . | . . . Impact Corruptions . | . . . Robots Melted . | . . . Combat Hostiles . | . . . Parts Melted . | . . . Heat Transferred 407 | 37 370 . Parts Sabotaged . | . . . Parts Stolen . | . . . Parts Stripped . | . . . Power Chain Reactions . | . . . Alert | -11 -10 -10 ------- Run | Yrd Mat Min Maximum Alert Level . | . . . Low Security (%) 100 | 100 100 100 Level 1 . | . . . Level 2 . | . . . Level 3 . | . . . Level 4 . | . . . Level 5 . | . . . High Security . | . . . Max Security . | . . . Peak Influence 35 | 20 35 . Initial . | . . . Average . | . . . Influence Increases 189 | 20 169 . Destroy 0b10 Robot/C 140 | 20 120 . Destroy 0b10 Robot/NC 10 | . 10 . Destroy Leader 34 | . 34 . Successful Hack 5 | . 5 . Influence Decreases 189 | 20 169 . Time Decay 189 | 20 169 . Squads Dispatched . | . . . Investigation . | . . . Extermination . | . . . Reinforcement . | . . . Assault . | . . . Garrison . | . . . Intercept . | . . . Searches Triggered . | . . . Construction Impeded . | . . . Haulers Reinforced . | . . . Active Scanning Responses . | . . . Cargo Convoy Interrupts . | . . . Stealth | -11 -10 -10 --------- Run | Yrd Mat Min Distress Signals 3 | . 3 . Communications Jammed . | . . . Distress Signals . | . . . Times Spotted 22 | 1 19 2 Peak Tracking Total 3 | 1 3 2 Tactical Retreats . | . . . Traps | -11 -10 -10 ------- Run | Yrd Mat Min Traps Triggered 2 | . 2 . Indirectly . | . . . Trap Hack Attempts . | . . . Triggered . | . . . Disarmed . | . . . Reprogrammed . | . . . Reused . | . . . Traps Extracted . | . . . Installed . | . . . Triggered . | . . . Machines | -11 -10 -10 ---------- Run | Yrd Mat Min Machines Disabled . | . . . Max in Single Turn . | . . . Machines Repaired . | . . . Machines Dismantled . | . . . Machines Sabotaged . | . . . Overloaded Fab Kills . | . . . Hacking | -11 -10 -10 --------- Run | Yrd Mat Min Machines Accessed 4 | . 4 . Terminals 3 | . 3 . Fabricators . | . . . Repair Stations . | . . . Recycling Units 1 | . 1 . Scanalyzers . | . . . Garrison Access . | . . . Total Hacks 15 | . 15 . Successful 13 | . 13 . Failed 2 | . 2 . Catastrophic . | . . . Database Lockouts . | . . . Manual . | . . . Terminals 9 | . 9 . Fabricators . | . . . Repair Stations . | . . . Recycling Units 6 | . 6 . Scanalyzers . | . . . Garrison Access . | . . . Terminal Hacks 8 | . 8 . Record 6 | . 6 . Dispatch Records 1 | . 1 . Assault Status 1 | . 1 . Fabricator Hacks . | . . . Repair Station Hacks . | . . . Recycling Unit Hacks 5 | . 5 . Recycle Component 3 | . 3 . Process 1 | . 1 . Retrieve Components 1 | . 1 . Scanalyzer . | . . . Garrison Access Hacks . | . . . Unauthorized Hacks . | . . . Terminals . | . . . Fabricators . | . . . Repair Stations . | . . . Recycling Units . | . . . Scanalyzers . | . . . Garrison Access . | . . . Data Cores Recovered . | . . . Used . | . . . Hacking Detections 4 | . 4 . Full Trace Events 1 | . 1 . Feedback Events . | . . . Feedback Blocked . | . . . Robot Schematics Acquired . | . . . Robots Built . | . . . Authchips . | . . . Time . | . . . Total Robot Build Rating . | . . . Part Schematics Acquired . | . . . Parts Built . | . . . Authchips . | . . . Time . | . . . Total Part Build Rating . | . . . Part Studies Acquired . | . . . Parts Repaired . | . . . Time . | . . . Parts Recycled 3 | . 3 . Recycled Matter 79 | . 79 . Retrieved Matter . | . . . Retrieved Components . | . . . Parts Scanalyzed . | . . . Part Schematics Acquired . | . . . Parts Damaged . | . . . Bothacking | -11 -10 -10 ------------ Run | Yrd Mat Min Used RIF Installer . | . . . Robots Hacked . | . . . Non-combat . | . . . Combat . | . . . Robot Hacks Applied . | . . . Relay Couplers Released . | . . . Fabnet Peak Effective % . | . . . Robots Rewired . | . . . Allies Hacked . | . . . Hacks Repelled . | . . . Allies | -11 -10 -10 -------- Run | Yrd Mat Min Total Allies . | . . . Largest Group . | . . . Highest-Rated Group . | . . . Highest-Rated Ally . | . . . Total Orders . | . . . Ally Attacks . | . . . Total Damage . | . . . Kills . | . . . Allies Corrupted . | . . . Allies Melted . | . . . Intel | -11 -10 -10 ------- Run | Yrd Mat Min Active Infowar (turns) 1533 | 180 1353 . Terrain 1533 | 180 1353 . Robot Analysis Total . | . . . Derelict Logs Recovered . | . . . Drone Launches . | . . . Drone Recoveries . | . . . Exploration | -11 -10 -10 ------------- Run | Yrd Mat Min Turns Passed 8789 | 954 7664 171 Spaces Moved 505 | 88 417 . Core 24 | 24 . . Treads 36 | . 36 . Legs . | . . . Wheels 119 | 64 55 . Hover 284 | . 284 . Flight 42 | . 42 . Fastest Speed 50 | 50 80 . Average Speed 133 | 71 147 . Slowest Speed 365 | 80 365 . Overloaded Moves . | . . . Propulsion Burnouts . | . . . Robots Hopped . | . . . Potential Cave-ins . | . . . Cave-ins Triggered . | . . . Exploration Rate (%) 25 | 6 66 4 Regions Visited 2 Branch Regions 1 Pre-discovered Areas . | . . . Known Exits Taken 2 | 1 1 . Unknown Exits Taken . | . . . Scrap Searched . | . . . Spaces Dug . | . . . Terrain Destroyed . | . . . Melee . | . . . Projectile . | . . . AOE . | . . . Terrain Rammed . | . . . Walls Destroyed . | . . . Machines Disabled . | . . . Actions | -11 -10 -10 --------- Run | Yrd Mat Min Total 8595 | 977 7447 171 Wait 8025 | 868 6986 171 Move 503 | 87 416 . Hop . | . . . Pick Up 27 | 10 17 . Fast Attach . | . . . Attach 9 | 7 2 . Detach . | . . . Swap 9 | . 9 . Drop 7 | 1 6 . Fire 12 | 1 11 . Melee . | . . . Ram 3 | 3 . . Kick . | . . . Crush . | . . . Escape Stasis . | . . . Rewire . | . . . Trap . | . . . Miscellaneous . | . . . Route ------- -11/Scrapyard -10/Materials (discovered 3 exits: *Mat x2 / *Min) -10/Mines History --------- Turn | Location | Event 2 | -11/Scrapyard | Met Revision 17 56 | -11/Scrapyard | Identified exit to Materials 56 | -11/Scrapyard | Discovered exit to Materials (range 8) 955 | -11/Scrapyard | Entered Materials 955 | -10/Materials | Evolved 1 slot: Power x1 956 | -10/Materials | Build established: Hacker-Mutant 2122 | -10/Materials | Identified exit to Mines 2122 | -10/Materials | Discovered exit to Mines (range 13) 4503 | -10/Materials | Identified exit to Materials 4503 | -10/Materials | Discovered exit to Materials (range 16) 5871 | -10/Materials | Core integrity fell below 50% 7583 | -10/Materials | Discovered exit to Materials (range 15) 8619 | -10/Materials | Entered Mines 8748 | -10/Mines | Core integrity fell below 20% 8790 | -10/Mines | Destroyed by S-10 Pest with Light Assault Rifle Last Messages --------------- Records) is a centralized reference of all the lore you've uncovered throughout all runs. K-01 Serf cleans the Terminal. System corrupted: Matter fused (-9). IO1BV:TE94TGTBC6%DCTVUSSMPI:M SX0 PZUP3IYEKAH7UHG/PWGCLU83%Q%CEAO System corrupted: IFF burst signal emitted. Acquired Med. Matter Pod. Hold RMB on a map location to designate it as a relative view centerpoint. This is especially useful while zoomed, in order to see further in your current direction of exploration. Try it now. 2J5QDHDI=3MD0YU Map ----- +----------------------------------------------------+ | | | | | | | | | | | | | | | | | | | | | | | | | | | | | ??????????????????????????????????????????? | | ??????????????????????????????????????????? | | ??????????????????????????????????????????? | | ???????????????????####???????????????????? | | ??????????????????## #??????????????????? | | ?????????????????## #?????????????????? | | ?????????????????# ##???????????????? | | ?????????????????# #???????????????? | | ??????????????????# #???????????????? | | ??????????????????# ##??????????????? | | ??????????????????# ##?????????????? | | ???????????????????# @ #?????????????? | | ???????????????????# #?????????????? | | ???????????????????## ##?????????????? | | ????????????????????###ss ##??????????????? | | ??????????????????????# ##???????????????? | | ?????????????????????? ?????????????????? | | ?????????????????????## ?????????????????? | | ??????????????????????# %?????????????????? | | ??????????????????????# ?????????????????? | | ?????????????????????? ?????????????????? | | ?????????????????????? ?????????????????? | | ?????????????????????? ?????????????????? | | ????????????????????? ??????????????????? | | ????????????????????? ??????????????????? | | ????????????????????? ??????????????????? | | ??????????????????????? ??????????????????? | | ??????????????????????????????????????????? | | ??????????????????????????????????????????? | | ??????????????????????????????????????????? | | ??????????????????????????????????????????? | | ??????????????????????????????????????????? | | ??????????????????????????????????????????? | | ??????????????????????????????????????????? | | ??????????????????????????????????????????? | | ??????????????????????????????????????????? | +----------------------------------------------------+ Best States ------------- Heat Dissipation 25 Energy Generation 15 Energy Capacity 275 Matter Stores 300 Matter Capacity 300 Sight Range 16 Terrain Scan Range 14 Terrain Scan Density 10 Resistance: KI 35 Resistance: TH 35 Resistance: EX 35 Resistance: EM 35 Resistance: I 35 Resistance: S 35 Resistance: P 35 Core Shielding 20 Evasion (%) 50 Recoil Reduction 2 Offensive Hacking 20 Item Schematics ----------------- None Robot Schematics ------------------ None Fabricated ------------ Nothing Repaired ---------- Nothing Studied --------- None Alien Tech Used ----------------- None Achievements -------------- That Tickles Challenges ------------ None Game ------ Seed SkeletonFactoryRipper Manual? 0 Play Time 00:23:50 Cumulative 0.6 hours Start 2025.11.16 @ 19:19:12 End 2025.11.16 @ 19:52:21 Sessions 1 Manual Loads 0 Difficulty Explorer Special Mode None Game No. 3 Rogue 0 Adventurer 0 Explorer 3 Win Type - Total 0 Types 0/0/0/0/0/0/0/0/0/0 Lore% 0 Gallery% 1 Achievement% 0 Wizard Run 0 Options --------- Layout 1 ASCII 0 Keyboard 0 Movement Numpad Keybinds 0 Fullscreen 1 Font 16/X11Caps Map View 25x20 Zoom Use 89% Tactical HUD 0 Map Filters NONE Filters NONE Steam SD RUN: 6b1b0d91-36c0-4080-be93-99aa74f01a82